{"text_format":"2","workbook":"xlsx","n_sheets":2,"sheets":["Annex 4","Annex 5"],"not_rendered":{"charts":0,"images":0,"macros":0,"external_links":0,"defined_names":0,"comments":0,"pivot_tables":0},"unopened":[],"bounds":{"document_bytes":16777216,"sheet_cells":100000,"run_cost":"one","rows_first":2000,"rows_last":500,"rows_between":2000,"halvings":0,"cell_chars":16384,"cell_head_chars":4096},"cells_cut":0,"cells_raw":0,"read":"whole","date_system":"1900"}

{"sheet":"Annex 4","index":0,"n_rows":51,"n_cols":16,"rows_kept":51,"cut":false,"hidden":false,"merged":[[2,0,2,15],[7,0,7,4],[12,0,12,4],[7,9,7,10],[7,11,7,15],[12,9,12,10],[12,11,12,15]]}
["Annex 4 – Compliance of product/s to the requirements"]
["Lot","Medical Device Name","Назва медичного виробу","Packaging unit","Quantity (of packing units requested)","Compliance with technical specifications \n(yes/no)","Statement of deviations from branded product (for equivalents proposed)","Compatibility with equipment if required (Y/N)","Catalogue Number","Manufacturer name and manufacturing site (address)","Product Standard as per Section 3 (please list documents on conformity to established product standards)","Total shelf life (please indicate total shelf life in number of months)","Remaining shelf life (please indicate product’s expiration date)","Product’s lead time (production time)","Expected delivery date/s","Transportation and storage restrictions (cold chain, only air only sea, not put on side etc.)"]
["Medical devices for treatment of children with oncological oncohematologicals disease"]
[1,"Leukocyte Reduction Filter or device for Platelet Concentrate (for bedside application)","Фільтри або пристрій для видалення лейкоцитів з тромбоконцентрату (для приліжкового використання)","unit",936]
[2,"Infusion filter for 96-hour use","Фільтри для інфузій (96-годинні)","unit",6.1459999999999999]
[3,"Set for collection of Red Blood Cells with filter for Automated Complex Apheresis device MCS+ (for platelet concentrate collection)","Набір для збору клітин крові з фільтром до апарата для автоматичного комплексного аферезу MCS+ (для заготівлі тромбоконцентрату)","set",220]
[4,"Dual Needle Extended Life Platelet Set with LRS Chamber for COBE Spectra Apheresis System (or equivalent)","Комплект двоголковий для збору довгоживучих тромбоцитів з камерою LRS COBE Spectra до системи для аферезу COBE Spectra (або еквівалент)","kit",70]
["Laboratory reagents for the Reference Laboratory for diagnosis of oncohematological diseases of the National Children’s Specialized Hospital “OKHMATDYT” Laboratory reagents for immunocytological diagnosis of leukemias and lymphomas, detection of minimal residual disease, enumeration of haematopoietic stem sell collections using a flow cytofluorometer CytoMix FC-500"]
[5,"Monoclonal Antibody to CD15, Fluorochrome PE, 100 tests","Моноклональне антитіло CD15, мічене флюоресцентним барвником PЕ, 100 тестів","vial",1]
[6,"Monoclonal Antibody to CD64, Fluorochrome PE, 2 ml (tests)","Моноклональне антитіло CD64, мічене флюоресцентним барвником PE, 2 мл","vial",1]
[7,"Monoclonal Antibody to HLA-DR, Fluorochrome FITC, 100 tests","Моноклональне антитіло HLA-DR, мічене флюоресцентним барвником FITC, 100 тестів","vial",3]
[8,"Test Tube, 12X75MM, Blue (250/PK) Analysis tubes, 12 х 75 mm, blue (250 units in a pack)","Test Tube, 12X75MM, Blue (250/PK) пробірки для аналізу, 12 х 75 мм, блакитні (250 штук в упаковці)","pack",4]
["Laboratory reagents for immunohistochemical diagnostics of solid malignant tumors in children"]
[9,"FLEX Monoclonal Mouse Anti-Human Cytokeratin, Clone AE1/AE3, Ready-to-Use, DAKO AS/AS+","FLEX Моноклональне антитіло “миша проти людини”, цитокератин, AE1/AE3, готове до використання, DAKO AS/AS+","vial",3]
[10,"FLEX Polyclonal Rabbit Anti-Human Alpha-1-Fetoprotein, Ready-to-Use","FLEX Поліклональне антитіло “кролик проти людини”, Альфа-1-фетопротеїн, готове до використання","vial",2]
[11,"FLEX Monoclonal Mouse Anti-Human Calretinin, DAK-Calret 1, Ready-to-Use","FLEX Моноклональне антитіло “миша проти людини”, калретінин, DAK-Calret 1, готове до використання","vial",1]
[12,"FLEX Monoclonal Mouse Anti-Human β-Catenin, β-Catenin-1, Ready-to-Use","FLEX Моноклональне антитіло “миша проти людини”, β-катенін, β-Catenin-1, готове до використання","vial",3]
[13,"FLEX Monoclonal Mouse Anti-Human, CD10, Clone 56C6, Ready-to-Use","FLEX Моноклональне антитіло “миша проти людини”, КД10, 56C6, готове до використання","vial",1]
[14,"FLEX Monoclonal Mouse Anti-Human, CD1a, Clone 010, Ready-to-Use, DAKO AS/AS+","FLEX Моноклональне антитіло “миша проти людини”, КД1a, 010, готове до використання, DAKO AS/AS+","vial",1]
[15,"FLEX Monoclonal Mouse Anti-Human, CD31, Endothelial Cell, Clone JC70A, Ready-to-Use","FLEX Моноклональне антитіло “миша проти людини”, КД31, ендотеліальні клітини, JC70A, готове до використання","vial",1]
[16,"FLEX Monoclonal Mouse Anti-Human CD34 Class II Clone QBEnd 10, Ready-to-Use","FLEX Моноклональне антитіло “миша проти людини”, КД34 клас II, QBEnd 10, готове до використання","vial",1]
[17,"FLEX Monoclonal Mouse Anti-Human CD68, Clone KP1, Ready-to-Use","FLEX Моноклональне антитіло “миша проти людини”, КД68, KP1, готове до використання","vial",1]
[18,"FLEX Monoclonal Mouse Anti-Human, CD99, MIC2 Gene Products, Ewing's Sarcoma Marker Clone 12E7, Ready-to-Use, AS/AS+","FLEX Моноклональне антитіло “миша проти людини”, КД99 MIC2 генні продукти, маркер саркоми Евінга 12E7 готове до використання, AS/AS+","vial",1]
[19,"FLEX Polyclonal Rabbit Anti-Human Carcinoembryonic Antigen, Ready-to-Use","FLEX Поліклональне антитіло “кролик проти людини”, раково-ембріональний антиген, готове до використання","vial",1]
[20,"Monoclonal Mouse Anti-Human, collagen IV, CIV 22","Моноклональне антитіло “миша проти людини”, колаген IV, CIV 22","vial",1]
[21,"FLEX Monoclonal Mouse Anti-Human, Desmin Clone D33, Ready-to-Use","FLEX Моноклональне антитіло “миша проти людини”, десмін, D33, готове до використання","vial",1]
[22,"FLEX Monoclonal Mouse Anti-Human, E-Cadherin, Clone NCH-38, Ready-to-Use (Dako AS/AS+)","FLEX Моноклональне антитіло “миша проти людини”, E-кадхерін, NCH-38, готове до використання (Dako AS/AS+)","vial",1]
[23,"FLEX Monoclonal Mouse Anti-Human, Epithelial Membrane Antigen, Clone E29, Ready-to-Use","FLEX Моноклональне антитіло “миша проти людини”, епітеліально-мембранний антиген, E29, готове до використання","vial",1]
[24,"FLEX Polyclonal Rabbit Anti-Glial Fibrillary Acidic Protein, Ready-to-Use","FLEX Поліклональне антитіло “кролик проти гліального фібрилярного кислого протеїну”, готове до використання","vial",1]
[25,"FLEX Monoclonal Mouse Anti-Human Hepatocyte Clone OCH1E5, Ready-to-Use","FLEX Моноклональне антитіло “миша проти людини”, гепатоцити, OCH1E5, готове до використання","vial",1]
[26,"FLEX Monoclonal Mouse Anti-Human, Ki-67 Antigen, Clone MIB-1, Ready-to-Use","FLEX Моноклональне антитіло “миша проти людини”, Ki-67 антиген, MIB-1, готове до використання","vial",1]
[27,"FLEX Monoclonal Mouse Anti-Human Actin (Muscle) Clone HHF35, Ready-to-Use","FLEX Моноклональне антитіло “миша проти людини”, м’язевий актин, HHF35, готове до використання","vial",1]
[28,"Monoclonal Mouse Anti-Human, MyoD1, 5.8A","Моноклональне антитіло “миша проти людини”, MyoD1, 5.8A","vial",1]
[29,"FLEX Monoclonal Mouse Anti-Myogenin, Clone F5D, Ready-to-Use, DAKO AS/AS+","FLEX Моноклональне антитіло “миша проти міогеніну”, F5D, готове до використання, DAKO AS/AS+","vial",1]
[30,"Monoclonal Mouse Anti-Human Mesothelial Cell Clone HBME-1","Моноклональне антитіло “миша проти людини”, мезотеліальні клітини, HBME-1","vial",2]
[31,"FLEX Monoclonal Mouse Anti-Human Neuron-Specific Enolase (NSE), Clone BBS/NC/VI-H14, Ready-to-Use","FLEX Моноклональне антитіло “миша проти людини”, НСЄ, BBS/NC/VI-H14, готове до використання","vial",1]
[32,"FLEX Monoclonal Mouse Anti-Human Progesterone Receptor, Clone PgR 636, Ready-to-Use, DAKO AS/AS+","FLEX Моноклональне антитіло “миша проти людини”, прогестероновий рецептор, PgR 636, готове до використання, DAKO AS/AS+","vial",2]
[33,"FLEX Polyclonal Rabbit Anti S100, Ready-to-Use","FLEX Поліклональне антитіло “кролик проти S100”, готове до використання","vial",1]
[34,"FLEX Monoclonal Mouse Anti-Human Actin (Smooth Muscle), Clone 1A4, Ready-to-Use","FLEX Моноклональне антитіло “миша проти людини”, гладенько-м’язевий актин, 1A4, готове до використання","vial",1]
[35,"Monoclonal Mouse Anti-Human Vascular Endothelial Growth Factor (VEGF), Clone VG1","Моноклональне антитіло “миша проти людини”, васкулярний ендотеліальний фактор росту (VEGF), VG1","vial",1]
[36,"Monoclonal Mouse Anti-Human Von Willebrand Factor, Clone F8/86","Моноклональне антитіло “миша проти людини”, фактор Вон Вілєбранта , F8/86","vial",3]
[37,"FLEX Monoclonal Mouse Anti-Human WT1 Protein, Clone 6F-H2, DAKO AS/AS+","FLEX Моноклональне антитіло “миша проти людини”, WT1 протеїн, 6F-H2, DAKO AS/AS+","vial",9]
[38,"Monoclonal Mouse Anti-Human, epidermal growth factor receptor (EGFR), E30","Моноклональне антитіло “миша проти людини”, рецептор до епідермального ростового фактору (EGFR), E30","vial",1]
[39,"FLEX Monoclonal Mouse Anti-Human CD45, Leucocyte Common Antigen, Clones 2B11 + PD7/26, Ready-to-Use","FLEX Моноклональне антитіло “миша проти людини”, КД45, LCA, 2B11+PD7/26, готове до використання","vial",1]
[40,"EnVision FLEX+, High pH (Dako Autostainer Instruments)","EnVision FLEX+, Високий pH (Dako Autostainer Instruments)","pack",1]
[41,"Mounting Medium","Заключне середовище","vial",1]
[42,"Rabbit Monoclonal Anti-Synaptophysin antibody","Моноклональне антитіло “кролик проти сінаптофізину”","vial",1]
[43,"Rabbit Monoclonal Anti-Chromogranin A antibody","Моноклональне антитіло “кролик проти хромограніну А”","vial",1]
[44,"Elite PAP Pen","Elite PAP імуномаркер","pack",1]
[45,"Disposable Microtome Blades Patho Cutter R22","Змінні леза до мікротому Patho Cutter R22","pack",1]
[46,"HistoBond® + S slides","Скельця S HistoBond® +","pack",25]

{"sheet":"Annex 5","index":1,"n_rows":61,"n_cols":8,"rows_kept":61,"cut":false,"hidden":false,"merged":[[6,1,6,7],[7,1,7,7],[10,0,10,7],[1,1,1,7],[2,1,2,7],[3,1,3,7],[4,1,4,7],[5,1,5,7],[20,0,20,7],[59,0,59,4],[60,0,60,4],[8,1,8,7],[15,0,15,7]]}
["Annex 5 - Price Schedule Form"]
[null,"Please pay attention to the following when preparing the Price Schedule Form:\nПожалуйста обратите внимание на следующее при заполнении формы Прайс-Листа:"]
[1,"The bidders should quote prices for each product on DAP Kyiv Incoterms. Please note, the product unit prices shall be indicated including freight and insurance costs (DAP Kyiv basis) (for details please refere to Section #3)."]
[2,"All items must be quoted in USD or UAH on DAP Kyiv basis. Bid currency should be clearly indicated. "]
[3,"Provided VAT exemption condition may not be applied under the Ukrainian legislation. VAT amount should be clearly indicated in a separate line (if applicable). "]
[4,"Prices specified shall remain firm and not be increased. In case Bidder increase price after awarding contract,  UNDP will consider this as a ground for contract termination, liquidating Performance Security amount and either awarding the next qualified Bidder or initiating a new bidding process. "]
[5]
[6,"UNDP shall use the  unit prices quoted in the event when both parties have agreed for additional products to be suplied."]
[7,"UNDP reserves the right to vary the quantity of the goods by up to a maximum twenty-five per cent (25%) of the total offer, without any change in the unit price or other terms and conditions.\n"]
["Lot","Medical Device Name","Назва медичного виробу","Packaging unit","Quantity (of packing units requested) (A)","Unit price on DAP Kyiv basis, excl. VAT \n( B )","VAT (if applicable)                        (C)","Total Amount per item incl. VAT (if applicable)\nA*(B+C)"]
["Medical devices for treatment of children with oncological oncohematologicals disease"]
[1,"Leukocyte Reduction Filter or device for Platelet Concentrate (for bedside application)","Фільтри або пристрій для видалення лейкоцитів з тромбоконцентрату (для приліжкового використання)","unit",936,null,null,{"$f":"E12*(F12+G12)","v":0}]
[2,"Infusion filter for 96-hour use","Фільтри для інфузій (96-годинні)","unit",6.1459999999999999,null,null,{"$f":"E13*(F13+G13)","v":0}]
[3,"Set for collection of Red Blood Cells with filter for Automated Complex Apheresis device MCS+ (for platelet concentrate collection)","Набір для збору клітин крові з фільтром до апарата для автоматичного комплексного аферезу MCS+ (для заготівлі тромбоконцентрату)","set",220,null,null,0]
[4,"Dual Needle Extended Life Platelet Set with LRS Chamber for COBE Spectra Apheresis System (or equivalent)","Комплект двоголковий для збору довгоживучих тромбоцитів з камерою LRS COBE Spectra до системи для аферезу COBE Spectra (або еквівалент)","kit",70,null,null,0]
["Laboratory reagents for the Reference Laboratory for diagnosis of oncohematological diseases of the National Children’s Specialized Hospital “OKHMATDYT” Laboratory reagents for immunocytological diagnosis of leukemias and lymphomas, detection of minimal residual disease, enumeration of haematopoietic stem sell collections using a flow cytofluorometer CytoMix FC-500"]
[5,"Monoclonal Antibody to CD15, Fluorochrome PE, 100 tests","Моноклональне антитіло CD15, мічене флюоресцентним барвником PЕ, 100 тестів","vial",1,null,null,0]
[6,"Monoclonal Antibody to CD64, Fluorochrome PE, 2 ml (tests)","Моноклональне антитіло CD64, мічене флюоресцентним барвником PE, 2 мл","vial",1,null,null,0]
[7,"Monoclonal Antibody to HLA-DR, Fluorochrome FITC, 100 tests","Моноклональне антитіло HLA-DR, мічене флюоресцентним барвником FITC, 100 тестів","vial",3,null,null,0]
[8,"Test Tube, 12X75MM, Blue (250/PK) Analysis tubes, 12 х 75 mm, blue (250 units in a pack)","Test Tube, 12X75MM, Blue (250/PK) пробірки для аналізу, 12 х 75 мм, блакитні (250 штук в упаковці)","pack",4,null,null,0]
["Laboratory reagents for immunohistochemical diagnostics of solid malignant tumors in children"]
[9,"FLEX Monoclonal Mouse Anti-Human Cytokeratin, Clone AE1/AE3, Ready-to-Use, DAKO AS/AS+","FLEX Моноклональне антитіло “миша проти людини”, цитокератин, AE1/AE3, готове до використання, DAKO AS/AS+","vial",3,null,null,{"$f":"E22*(F22+G22)","v":0}]
[10,"FLEX Polyclonal Rabbit Anti-Human Alpha-1-Fetoprotein, Ready-to-Use","FLEX Поліклональне антитіло “кролик проти людини”, Альфа-1-фетопротеїн, готове до використання","vial",2,null,null,0]
[11,"FLEX Monoclonal Mouse Anti-Human Calretinin, DAK-Calret 1, Ready-to-Use","FLEX Моноклональне антитіло “миша проти людини”, калретінин, DAK-Calret 1, готове до використання","vial",1,null,null,0]
[12,"FLEX Monoclonal Mouse Anti-Human β-Catenin, β-Catenin-1, Ready-to-Use","FLEX Моноклональне антитіло “миша проти людини”, β-катенін, β-Catenin-1, готове до використання","vial",3,null,null,0]
[13,"FLEX Monoclonal Mouse Anti-Human, CD10, Clone 56C6, Ready-to-Use","FLEX Моноклональне антитіло “миша проти людини”, КД10, 56C6, готове до використання","vial",1,null,null,0]
[14,"FLEX Monoclonal Mouse Anti-Human, CD1a, Clone 010, Ready-to-Use, DAKO AS/AS+","FLEX Моноклональне антитіло “миша проти людини”, КД1a, 010, готове до використання, DAKO AS/AS+","vial",1,null,null,0]
[15,"FLEX Monoclonal Mouse Anti-Human, CD31, Endothelial Cell, Clone JC70A, Ready-to-Use","FLEX Моноклональне антитіло “миша проти людини”, КД31, ендотеліальні клітини, JC70A, готове до використання","vial",1,null,null,0]
[16,"FLEX Monoclonal Mouse Anti-Human CD34 Class II Clone QBEnd 10, Ready-to-Use","FLEX Моноклональне антитіло “миша проти людини”, КД34 клас II, QBEnd 10, готове до використання","vial",1,null,null,0]
[17,"FLEX Monoclonal Mouse Anti-Human CD68, Clone KP1, Ready-to-Use","FLEX Моноклональне антитіло “миша проти людини”, КД68, KP1, готове до використання","vial",1,null,null,0]
[18,"FLEX Monoclonal Mouse Anti-Human, CD99, MIC2 Gene Products, Ewing's Sarcoma Marker Clone 12E7, Ready-to-Use, AS/AS+","FLEX Моноклональне антитіло “миша проти людини”, КД99 MIC2 генні продукти, маркер саркоми Евінга 12E7 готове до використання, AS/AS+","vial",1,null,null,0]
[19,"FLEX Polyclonal Rabbit Anti-Human Carcinoembryonic Antigen, Ready-to-Use","FLEX Поліклональне антитіло “кролик проти людини”, раково-ембріональний антиген, готове до використання","vial",1,null,null,0]
[20,"Monoclonal Mouse Anti-Human, collagen IV, CIV 22","Моноклональне антитіло “миша проти людини”, колаген IV, CIV 22","vial",1,null,null,0]
[21,"FLEX Monoclonal Mouse Anti-Human, Desmin Clone D33, Ready-to-Use","FLEX Моноклональне антитіло “миша проти людини”, десмін, D33, готове до використання","vial",1,null,null,0]
[22,"FLEX Monoclonal Mouse Anti-Human, E-Cadherin, Clone NCH-38, Ready-to-Use (Dako AS/AS+)","FLEX Моноклональне антитіло “миша проти людини”, E-кадхерін, NCH-38, готове до використання (Dako AS/AS+)","vial",1,null,null,0]
[23,"FLEX Monoclonal Mouse Anti-Human, Epithelial Membrane Antigen, Clone E29, Ready-to-Use","FLEX Моноклональне антитіло “миша проти людини”, епітеліально-мембранний антиген, E29, готове до використання","vial",1,null,null,0]
[24,"FLEX Polyclonal Rabbit Anti-Glial Fibrillary Acidic Protein, Ready-to-Use","FLEX Поліклональне антитіло “кролик проти гліального фібрилярного кислого протеїну”, готове до використання","vial",1,null,null,0]
[25,"FLEX Monoclonal Mouse Anti-Human Hepatocyte Clone OCH1E5, Ready-to-Use","FLEX Моноклональне антитіло “миша проти людини”, гепатоцити, OCH1E5, готове до використання","vial",1,null,null,0]
[26,"FLEX Monoclonal Mouse Anti-Human, Ki-67 Antigen, Clone MIB-1, Ready-to-Use","FLEX Моноклональне антитіло “миша проти людини”, Ki-67 антиген, MIB-1, готове до використання","vial",1,null,null,0]
[27,"FLEX Monoclonal Mouse Anti-Human Actin (Muscle) Clone HHF35, Ready-to-Use","FLEX Моноклональне антитіло “миша проти людини”, м’язевий актин, HHF35, готове до використання","vial",1,null,null,0]
[28,"Monoclonal Mouse Anti-Human, MyoD1, 5.8A","Моноклональне антитіло “миша проти людини”, MyoD1, 5.8A","vial",1,null,null,0]
[29,"FLEX Monoclonal Mouse Anti-Myogenin, Clone F5D, Ready-to-Use, DAKO AS/AS+","FLEX Моноклональне антитіло “миша проти міогеніну”, F5D, готове до використання, DAKO AS/AS+","vial",1,null,null,0]
[30,"Monoclonal Mouse Anti-Human Mesothelial Cell Clone HBME-1","Моноклональне антитіло “миша проти людини”, мезотеліальні клітини, HBME-1","vial",2,null,null,0]
[31,"FLEX Monoclonal Mouse Anti-Human Neuron-Specific Enolase (NSE), Clone BBS/NC/VI-H14, Ready-to-Use","FLEX Моноклональне антитіло “миша проти людини”, НСЄ, BBS/NC/VI-H14, готове до використання","vial",1,null,null,0]
[32,"FLEX Monoclonal Mouse Anti-Human Progesterone Receptor, Clone PgR 636, Ready-to-Use, DAKO AS/AS+","FLEX Моноклональне антитіло “миша проти людини”, прогестероновий рецептор, PgR 636, готове до використання, DAKO AS/AS+","vial",2,null,null,0]
[33,"FLEX Polyclonal Rabbit Anti S100, Ready-to-Use","FLEX Поліклональне антитіло “кролик проти S100”, готове до використання","vial",1,null,null,0]
[34,"FLEX Monoclonal Mouse Anti-Human Actin (Smooth Muscle), Clone 1A4, Ready-to-Use","FLEX Моноклональне антитіло “миша проти людини”, гладенько-м’язевий актин, 1A4, готове до використання","vial",1,null,null,0]
[35,"Monoclonal Mouse Anti-Human Vascular Endothelial Growth Factor (VEGF), Clone VG1","Моноклональне антитіло “миша проти людини”, васкулярний ендотеліальний фактор росту (VEGF), VG1","vial",1,null,null,0]
[36,"Monoclonal Mouse Anti-Human Von Willebrand Factor, Clone F8/86","Моноклональне антитіло “миша проти людини”, фактор Вон Вілєбранта , F8/86","vial",3,null,null,0]
[37,"FLEX Monoclonal Mouse Anti-Human WT1 Protein, Clone 6F-H2, DAKO AS/AS+","FLEX Моноклональне антитіло “миша проти людини”, WT1 протеїн, 6F-H2, DAKO AS/AS+","vial",9,null,null,0]
[38,"Monoclonal Mouse Anti-Human, epidermal growth factor receptor (EGFR), E30","Моноклональне антитіло “миша проти людини”, рецептор до епідермального ростового фактору (EGFR), E30","vial",1,null,null,0]
[39,"FLEX Monoclonal Mouse Anti-Human CD45, Leucocyte Common Antigen, Clones 2B11 + PD7/26, Ready-to-Use","FLEX Моноклональне антитіло “миша проти людини”, КД45, LCA, 2B11+PD7/26, готове до використання","vial",1,null,null,0]
[40,"EnVision FLEX+, High pH (Dako Autostainer Instruments)","EnVision FLEX+, Високий pH (Dako Autostainer Instruments)","pack",1,null,null,0]
[41,"Mounting Medium","Заключне середовище","vial",1,null,null,0]
[42,"Rabbit Monoclonal Anti-Synaptophysin antibody","Моноклональне антитіло “кролик проти сінаптофізину”","vial",1,null,null,0]
[43,"Rabbit Monoclonal Anti-Chromogranin A antibody","Моноклональне антитіло “кролик проти хромограніну А”","vial",1,null,null,0]
[44,"Elite PAP Pen","Elite PAP імуномаркер","pack",1,null,null,0]
[45,"Disposable Microtome Blades Patho Cutter R22","Змінні леза до мікротому Patho Cutter R22","pack",1,null,null,0]
[46,"HistoBond® + S slides","Скельця S HistoBond® +","pack",25,null,null,0]
["Volume discounts if awarded more than Lot (if any)"]
["Total"]